lending/lending_fUSD_20240605
["ID","MTS","AMOUNT","RATE_DAILY","PERIOD"]
[328616656,1717618240428,-500.0,0.00029424,4]
[328616657,1717618240437,-516.66370174,0.00029424,4]
[328616658,1717618240446,-151.0,0.00029424,7]
[328616659,1717618240456,-528.3298392,0.00029424,4]
[328616660,1717618240466,-500.0,0.00029424,4]
[328616661,1717618240475,-500.0,0.00029424,4]
[328616662,1717618240485,-522.05966201,0.00029424,4]
[328616663,1717618240495,-500.0,0.00029424,4]
[328616664,1717618240506,-531.85313629,0.00029424,4]
[328616665,1717618240516,-535.93988031,0.00029424,4]
[328616666,1717618240525,-500.0,0.00029424,4]
[328616667,1717618240535,-500.0,0.00029424,4]
[328616668,1717618240546,-500.0,0.00029424,4]
[328616669,1717618240556,-500.0,0.00029424,4]
[328616670,1717618240565,-500.0,0.00029424,4]
[328616671,1717618240575,-500.0,0.00029424,4]
[328616672,1717618240584,-500.0,0.00029424,4]
[328616673,1717618240597,-548.44065207,0.00029424,4]
[328616674,1717618240607,-500.0,0.00029424,4]
[328616675,1717618240617,-500.0,0.00029424,4]
[328616676,1717618240627,-500.0,0.00029424,4]
[328616677,1717618240638,-500.0,0.00029424,4]
[328616678,1717618240649,-523.23686937,0.00029424,4]
[328616679,1717618240658,-500.0,0.00029424,4]
[328616680,1717618240667,-196.24,0.00029424,4]
[328616681,1717618240677,-500.0,0.00029424,4]
[328616682,1717618240686,-530.44325777,0.00029424,4]
[328616683,1717618240696,-686.43,0.00029424,4]
[328616684,1717618240706,-518.38301359,0.00029424,4]
[328616685,1717618240716,-686.43,0.00029424,4]
[328616686,1717618240725,-500.0,0.00029424,4]
[328616687,1717618240735,-500.0,0.00029424,4]
[328616688,1717618240745,-151.0,0.00029424,7]
[328616689,1717618240756,-153.131296,0.00029424,7]
[328616690,1717618240765,-151.0,0.00029424,7]
[328616691,1717618240775,-500.0,0.00029424,4]
[328616692,1717618240784,-500.0,0.00029424,4]
[328616693,1717618240794,-500.0,0.00029424,4]
[328616694,1717618240803,-500.0,0.00029424,4]
[328616695,1717618240812,-500.0,0.00029424,4]
[328616696,1717618240821,-500.0,0.00029424,4]
[328616697,1717618240831,-568.35,0.00029424,4]
[328616698,1717618240841,-568.35,0.00029424,4]
[328616699,1717618240850,-500.0,0.00029424,4]
[328616700,1717618240860,-500.0,0.00029424,4]
[328616701,1717618240870,-500.0,0.00029424,4]
[328616702,1717618240879,-582.21334735,0.00029424,4]
[328616703,1717618240888,-500.0,0.00029424,4]
[328616704,1717618240898,-500.0,0.00029424,4]
[328616705,1717618240907,-500.0,0.00029424,4]
[328616706,1717618240917,-151.0,0.00029424,7]
[328616707,1717618240927,-1442.26,0.00029424,4]
[328616708,1717618240936,-1442.26,0.00029424,4]
[328616709,1717618240945,-500.0,0.00029424,4]
[328616710,1717618240955,-500.0,0.00029424,4]
[328616711,1717618240964,-500.0,0.00029424,4]
[328616712,1717618240974,-285.32989006,0.00029424,4]
[328616713,1717618240983,-151.0,0.00029424,7]
[328616714,1717618240992,-500.0,0.00029424,4]
[328616715,1717618241121,-291.24764992,0.00029424,4]
[328616716,1717618241130,-500.0,0.00029424,4]
[328616717,1717618241140,-500.0,0.00029424,4]
[328616718,1717618241150,-500.0,0.00029424,4]
[328616719,1717618241160,-514.25547235,0.00029424,4]
[328616720,1717618241169,-500.0,0.00029424,4]
[328616721,1717618241179,-299.45114458,0.00029424,4]
[328616722,1717618241190,-500.0,0.00029424,4]
[328616723,1717618241199,-580.1983613,0.00029424,4]
[328616724,1717618241209,-151.0,0.00029424,7]
[328616725,1717618241219,-500.0,0.00029424,4]
[328616726,1717618241228,-500.0,0.00029424,4]
[328616727,1717618241238,-385.12084843,0.00029424,4]
[328616728,1717618241247,-500.0,0.00029424,4]
[328616729,1717618241258,-323.85427832,0.00029424,4]
[328616730,1717618241268,-505.32967473,0.00029424,4]
[328616731,1717618241277,-244.929612,0.00029424,7]
[328616732,1717618241286,-500.0,0.00029424,4]
[328616733,1717618241295,-500.0,0.00029424,4]
[328616734,1717618241305,-151.0,0.00029424,7]
[328616735,1717618241315,-500.0,0.00029424,4]
[328616736,1717618241324,-500.0,0.00029424,4]
[328616737,1717618241334,-244.929612,0.00029424,7]
[328616738,1717618241343,-500.0,0.00029424,4]
[328616739,1717618241352,-500.0,0.00029424,4]
[328616740,1717618241362,-500.0,0.00029424,4]
[328616741,1717618241371,-500.0,0.00029424,4]
[328616742,1717618241381,-500.0,0.00029424,4]
[328616743,1717618241390,-500.0,0.00029424,4]
[328616744,1717618241400,-500.0,0.00029424,4]
[328616745,1717618241409,-500.0,0.00029424,4]
[328616746,1717618241418,-553.64758486,0.00029424,4]
[328616747,1717618241427,-596.42832811,0.00029424,4]
[328616748,1717618241436,-151.0,0.00029424,7]
[328616749,1717618241445,-500.0,0.00029424,4]
[328616750,1717618241454,-500.0,0.00029424,4]
[328616751,1717618241464,-500.0,0.00029424,4]
[328616752,1717618241473,-500.0,0.00029424,4]
[328616753,1717618241483,-1948.67,0.00029424,4]
[328616754,1717618241493,-1948.67,0.00029424,4]
[328616755,1717618241502,-524.54071789,0.00029424,4]
[328616756,1717618241514,-1946.74,0.00029424,4]
[328616757,1717618241524,-1946.74,0.00029424,4]
[328616758,1717618241534,-500.0,0.00029424,4]
[328616759,1717618241543,-500.0,0.00029424,4]
[328616760,1717618241553,-151.0,0.00029424,7]
[328616761,1717618241563,-500.0,0.00029424,4]
[328616762,1717618241572,-500.0,0.00029424,4]
[328616763,1717618241582,-500.0,0.00029424,4]
[328616764,1717618241591,-500.0,0.00029424,4]
[328616765,1717618241601,-500.0,0.00029424,4]
[328616766,1717618241610,-500.0,0.00029424,4]
[328616767,1717618241619,-478.38049337,0.00029424,4]
[328616768,1717618241628,-500.0,0.00029424,4]
[328616769,1717618241637,-500.0,0.00029424,4]
[328616770,1717618241647,-2380.68,0.00029424,4]
[328616771,1717618241656,-2380.68,0.00029424,4]
[328616772,1717618241666,-500.0,0.00029424,4]
[328616773,1717618241675,-500.0,0.00029424,4]
[328616774,1717618241684,-548.20494224,0.00029424,4]
[328616775,1717618241694,-515.49629405,0.00029424,4]
[328616776,1717618241704,-500.0,0.00029424,4]
[328616777,1717618241713,-500.0,0.00029424,4]
[328616778,1717618241723,-500.0,0.00029424,4]
[328616779,1717618241732,-567.12878893,0.00029424,4]
[328616780,1717618241741,-500.0,0.00029424,4]
[328616781,1717618241751,-500.0,0.00029424,4]
[328616782,1717618241761,-500.0,0.00029424,4]
[328616783,1717618241770,-500.0,0.00029424,4]
[328616784,1717618241779,-500.0,0.00029424,4]
[328616785,1717618241789,-500.0,0.00029424,4]
[328616786,1717618241799,-526.98542157,0.00029424,4]
[328616787,1717618241808,-601.78683,0.00029424,7]
[328616788,1717618241818,-500.0,0.00029424,4]
[328616789,1717618241829,-500.0,0.00029424,4]
[328616790,1717618241839,-359.8685994,0.00029424,4]
[328616791,1717618241848,-601.78683,0.00029424,7]
[328616792,1717618241858,-511.35703761,0.00029424,4]
[328616793,1717618241867,-398.39,0.00029452,2]
[328616794,1717618241876,-1055.87863486,0.00029489,2]
[328616795,1717618241886,-226.57269903,0.000295,3]
[328616796,1717618241896,-616.38552178,0.000295,2]
[328616797,1717618241905,-500.0,0.000295,10]
[328616798,1717618241915,-1011.56,0.000295,2]
[328616799,1717618241924,-167.49,0.00029513,2]
[328616800,1717618241934,-3520.3188,0.00029522,2]
[328616801,1717618241943,-172.91734175,0.00029522,2]
[328616802,1717618241952,-450.0,0.00029526,2]
[328616803,1717618241962,-200.0,0.000296,2]
[328616804,1717618241971,-500.0,0.000296,10]
[328616805,1717618241981,-500.0,0.0002962,4]
[328616806,1717618241991,-500.0,0.0002962,4]
[328616807,1717618242000,-500.0,0.0002962,4]
[328616808,1717618242011,-573.17,0.0002962,4]
[328616809,1717618242020,-500.0,0.0002962,4]
[328616810,1717618242029,-500.0,0.0002962,4]
[328616811,1717618242038,-500.0,0.0002962,4]
[328616812,1717618242047,-500.0,0.0002962,4]
[328616813,1717618242056,-500.0,0.0002962,4]
[328616814,1717618242065,-527.73,0.0002962,4]
[328616815,1717618242075,-1293.76,0.0002962,4]
[328616816,1717618242084,-500.0,0.0002962,4]
[328616817,1717618242094,-1089.54,0.0002962,4]
[328616818,1717618242104,-500.0,0.0002962,4]
[328616819,1717618242117,-5598.89,0.0002962,4]
[328616820,1717618242127,-500.0,0.0002962,4]
[328616821,1717618242136,-500.0,0.0002962,4]
[328616822,1717618242146,-500.0,0.0002962,4]
[328616823,1717618242156,-500.0,0.0002962,4]
[328616824,1717618242166,-368.47656337,0.0002962,4]
[328616825,1717618242175,-877.44,0.0002962,4]
[328616826,1717618242186,-500.0,0.0002962,4]
[328616827,1717618242196,-2231.34,0.00029621,4]
[328616828,1717618242206,-151.0,0.00029621,7]
[328616829,1717618242216,-500.0,0.00029621,4]
[328616830,1717618242226,-500.0,0.00029621,4]
[328616831,1717618242235,-784.88,0.00029621,4]
[328616832,1717618242244,-500.0,0.00029621,4]
[328616833,1717618242253,-2545.53,0.00029621,4]
[328616834,1717618242263,-951.38,0.00029621,4]
[328616835,1717618242273,-1052.52,0.00029621,4]
[328616836,1717618242282,-500.0,0.00029621,4]
[328616837,1717618242292,-500.0,0.00029621,4]
[328616838,1717618242301,-1171.59,0.00029621,4]
[328616839,1717618242311,-500.0,0.00029621,4]
[328616840,1717618242320,-829.9,0.00029621,4]
[328616841,1717618242329,-500.0,0.00029621,4]
[328616842,1717618242339,-500.0,0.00029621,4]
[328616843,1717618242348,-150.0,0.00029622,2]
[328616844,1717618242357,-150.0,0.00029622,2]
[328616845,1717618242366,-150.0,0.00029622,2]
[328616846,1717618242375,-156.497,0.00029622,2]
[328616847,1717618242384,-615.0,0.00029622,2]
[328616848,1717618242394,-443.192,0.00029622,2]
[328616849,1717618242403,-183.0,0.00029622,2]
[328616850,1717618242412,-1648.0,0.00029622,2]
[328616851,1717618242421,-177.0,0.00029622,2]
[328616852,1717618242431,-1830.0,0.00029622,2]
[328616853,1717618242440,-1267.0,0.00029622,2]
[328616854,1717618242449,-808.0,0.00029622,2]
[328616855,1717618242459,-446.0,0.00029622,2]
[328616856,1717618242468,-1576.67,0.00029622,2]
[328616857,1717618242477,-1303.0,0.00029622,2]
[328616858,1717618242485,-216.0,0.00029622,2]
[328616859,1717618242495,-545.0,0.00029622,2]
[328616860,1717618242504,-3172.0,0.00029622,2]
[328616861,1717618242514,-151.0,0.00029622,7]
[328616862,1717618242523,-151.0,0.00029622,7]
[328616863,1717618242532,-151.0,0.00029622,7]
[328616864,1717618242542,-151.0,0.00029622,7]
[328616865,1717618242552,-151.0,0.00029622,7]
[328616866,1717618242561,-151.0,0.00029622,7]
[328616867,1717618242571,-151.0,0.00029622,7]
[328616868,1717618242580,-151.0,0.00029622,7]
[328616869,1717618242590,-151.0,0.00029622,7]
[328616870,1717618242600,-601.78683,0.00029622,7]
[328616871,1717618242608,-601.78683,0.00029622,7]
[328616872,1717618242618,-1055.87863486,0.00029626,2]
[328616873,1717618242627,-157.060604,0.00029698,4]
[328616874,1717618242638,-253.04392149,0.00029698,2]
[328616875,1717618242647,-11653.58057379,0.000297,2]
[328616876,1717618242657,-500.0,0.000297,10]
[328616877,1717618242666,-4000.0,0.000297,2]
[328616878,1717618242675,-4000.0,0.000297,2]
[328616879,1717618242684,-4000.0,0.000297,2]
[328616880,1717618242694,-4000.0,0.000297,2]
[328616881,1717618242704,-4000.0,0.000297,2]
[328616882,1717618242714,-4000.0,0.000297,2]
[328616883,1717618242723,-2100.0,0.00029722,2]
[328616884,1717618242732,-152.654167,0.00029742,7]
[328616885,1717618242742,-1055.87863486,0.00029763,2]
[328616886,1717618242751,-500.0,0.00029783,2]
[328616887,1717618242762,-157.060604,0.00029798,6]
[328616888,1717618242771,-7500.0,0.00029799,2]
[328616889,1717618242780,-151.0,0.00029799,7]
[328616890,1717618242789,-7695.7702071,0.00029799,2]
[328616891,1717618242799,-151.0,0.00029799,7]
[328616892,1717618242808,-244.929612,0.00029799,7]
[328616893,1717618242817,-151.0,0.00029799,7]
[328616894,1717618242826,-244.929612,0.00029799,7]
[328616895,1717618242836,-151.0,0.00029799,7]
[328616896,1717618242845,-195.60930194,0.000298,2]
[328616897,1717618242854,-1782.0,0.000298,2]
[328616898,1717618242864,-1487.0,0.000298,10]
[328616899,1717618242873,-1011.56,0.000298,2]
[328616900,1717618242882,-312.8,0.000298,2]
[328616901,1717618242891,-155.0,0.000298,2]
[328616902,1717618242899,-7695.770207,0.00029808,2]
[328616903,1717618242908,-157.81,0.00029808,30]
[328616904,1717618242917,-195.6093019,0.00029817,2]
[328616905,1717618242927,-7695.770207,0.00029817,2]
[328616906,1717618242936,-7695.770207,0.00029827,2]
[328616907,1717618242946,-195.6093019,0.00029833,2]
[328616908,1717618242955,-7695.770207,0.00029836,2]
[328616909,1717618242964,-7695.770207,0.00029845,2]
[328616910,1717618242973,-171.060604,0.00029848,6]
[328616911,1717618242982,-195.6093019,0.0002985,2]
[328616912,1717618242991,-1000.0,0.00029851,2]
[328616913,1717618243000,-267536.04496178,0.00029854,13]
[328616914,1717618243009,-151.0,0.00029854,7]
[328616916,1717618243018,-601.78683,0.00029854,7]
[328616917,1717618243027,-601.78683,0.00029854,7]
[328616919,1717618243037,-7695.770207,0.00029854,2]
[328616920,1717618243046,-150.0,0.00029859,10]
[328616921,1717618243055,-7461.22292055,0.00029863,2]
[328616922,1717618243334,-151.0,0.000295,7]
[328616924,1717618243343,-234.54728645,0.00029863,2]
[328616925,1717618243353,-5800.0,0.00029866,2]
[328616927,1717618243362,-195.6093019,0.00029867,2]
[328616929,1717618243371,-5647.57778833,0.00029872,2]
[328616930,1717618243393,-1250.35930702,0.00029872,2]
[328616931,1717618243413,-797.83311165,0.00029872,2]
[328616932,1717618243422,-4027.33187913,0.00029875,2]
[328616933,1717618243433,-1772.66812087,0.00029875,2]
[328616934,1717618243442,-223.28852864,0.00029882,2]
[328616944,1717618243688,-250.0,0.00028496,2]
[328616945,1717618243697,-151.0,0.00029622,7]
[328616946,1717618243707,-454.62616577,0.00029863,2]
[328616947,1717618243722,-45.37383423,0.00029863,2]
[328616948,1717618243732,-500.0,0.00029863,2]
[328616949,1717618243740,-500.0,0.00029863,2]
[328616950,1717618243750,-500.0,0.00029863,2]
[328616951,1717618243760,-500.0,0.00029863,2]
[328616952,1717618243770,-444.27926694,0.00029863,2]
[328616953,1717618243779,-500.0,0.00029863,2]
[328616954,1717618243789,-500.0,0.00029863,2]
[328616955,1717618243798,-191.18159775,0.00029882,2]
[328616956,1717618243809,-2095.4278427,0.00029882,2]
[328616957,1717618243823,-1909.19999998,0.00029882,2]
[328616958,1717618243887,3503.7460311,0.00022499,2]
[328616959,1717618243908,1251.39436857,0.00022499,2]
[328616960,1717618243934,-483.6993214,0.00029882,2]
[328616961,1717618243945,-2792.97291653,0.00029882,2]
[328616962,1717618243953,-2512.59135991,0.00029883,2]
[328616963,1717618243967,-3287.40864009,0.00029883,2]
[328616964,1717618243976,-195.6093019,0.00029883,2]
[328616965,1717618243985,-419.42175762,0.00029887,2]
[328616966,1717618243994,-419.42175758,0.0002989,2]
[328616967,1717618244003,-7695.770207,0.00029891,2]
[328616968,1717618244012,-160.0,0.00029891,2]
[328616969,1717618244022,-5800.0,0.00029892,2]
[328616970,1717618244031,-151.0,0.00029892,7]
[328616971,1717618244040,-151.0,0.00029892,7]
[328616972,1717618244049,-185.89877539,0.00029892,2]
[328616973,1717618244058,-151.0,0.00029892,7]
[328616974,1717618244067,-419.42175758,0.00029894,2]
[328616975,1717618244076,-419.42175758,0.00029897,2]
[328616976,1717618244086,-500.0,0.00029897,4]
[328616977,1717618244095,-500.0,0.00029897,4]
[328616978,1717618244104,-500.0,0.00029897,4]
[328616979,1717618244117,-500.0,0.00029897,4]
[328616980,1717618244126,-578.40006325,0.00029897,4]
[328616981,1717618244135,-687.36,0.00029897,4]
[328616982,1717618244144,-500.0,0.00029897,4]
[328616983,1717618244154,-500.0,0.00029897,4]
[328616984,1717618244163,-573.17,0.00029897,4]
[328616985,1717618244173,-1358.75,0.00029897,4]
[328616986,1717618244182,-500.0,0.00029897,4]
[328616987,1717618244194,-4236.53,0.00029897,4]
[328616988,1717618244203,-500.0,0.00029897,4]
[328616989,1717618244212,-1293.76,0.00029897,4]
[328616990,1717618244221,-1089.54,0.00029897,4]
[328616991,1717618244230,-500.0,0.00029897,4]
[328616992,1717618244239,-500.0,0.00029897,4]
[328616993,1717618244248,-500.0,0.00029897,4]
[328616994,1717618244258,-510.32224055,0.00029897,4]
[328616995,1717618244267,-155.0,0.00029897,2]
[328616996,1717618244276,-877.44,0.00029897,4]
[328616997,1717618244285,-500.0,0.00029897,4]
[328616998,1717618244294,-500.0,0.00029897,4]
[328616999,1717618244303,-157.060604,0.00029898,8]
[328617000,1717618244313,-500.0,0.00029898,4]
[328617001,1717618244322,-500.0,0.00029898,4]
[328617002,1717618244331,-500.0,0.00029898,4]
[328617003,1717618244340,-500.0,0.00029898,4]
[328617004,1717618244349,-500.0,0.00029898,4]
[328617005,1717618244358,-500.0,0.00029898,4]
[328617006,1717618244367,-534.51928572,0.00029898,4]
[328617008,1717618244376,-150.0,0.00029898,4]
[328617010,1717618244385,-500.0,0.00029898,4]
[328617011,1717618244394,-500.0,0.00029898,4]
[328617012,1717618244403,-500.0,0.00029898,4]
[328617013,1717618244412,-500.0,0.00029898,4]
[328617014,1717618244421,-1000.0,0.00029898,5]
[328617015,1717618244430,-500.0,0.00029898,4]
[328617016,1717618244440,-500.0,0.00029898,4]
[328617017,1717618244448,-554.62531967,0.00029898,4]
[328617018,1717618244458,-500.0,0.00029898,4]
[328617019,1717618244468,-515.77048421,0.00029898,4]
[328617020,1717618244477,-500.0,0.00029898,4]
[328617021,1717618244486,-500.0,0.00029898,4]
[328617022,1717618244495,-500.0,0.00029898,4]
[328617023,1717618244505,-500.0,0.00029898,4]
[328617024,1717618244515,-445.98061812,0.00029898,4]
[328617026,1717618244524,-500.0,0.00029898,4]
[328617028,1717618244533,-182.24462506,0.00029898,4]
[328617030,1717618244543,-379.50601208,0.00029898,4]
[328617031,1717618244552,-500.0,0.00029898,4]
[328617032,1717618244562,-542.72708109,0.00029898,4]
[328617033,1717618244571,-500.0,0.00029898,4]
[328617034,1717618244582,-330.00093554,0.00029898,4]
[328617035,1717618244591,-500.0,0.00029898,4]
[328617036,1717618244600,-500.0,0.00029898,4]
[328617037,1717618244609,-968.18,0.00029898,4]
[328617038,1717618244620,-397.10157867,0.00029898,4]
[328617039,1717618244629,-500.0,0.00029898,4]
[328617040,1717618244639,-500.0,0.00029898,4]
[328617041,1717618244649,-500.0,0.00029898,4]
[328617042,1717618244659,-500.0,0.00029898,4]
[328617043,1717618244668,-500.0,0.00029898,4]
[328617044,1717618244678,-500.0,0.00029898,4]
[328617045,1717618244688,-500.0,0.00029898,4]
[328617046,1717618244697,-500.0,0.00029898,4]
[328617047,1717618244708,-500.0,0.00029898,4]
[328617048,1717618244718,-500.0,0.00029898,4]
[328617049,1717618244727,-500.0,0.00029898,4]
[328617050,1717618244736,-500.0,0.00029898,4]
[328617051,1717618244746,-151.0,0.00029898,7]
[328617052,1717618244755,-500.0,0.00029898,4]
[328617053,1717618244766,-500.0,0.00029898,4]
[328617054,1717618244775,-500.0,0.00029898,4]
[328617055,1717618244784,-500.0,0.00029898,4]
[328617056,1717618244795,-500.0,0.00029898,4]
[328617057,1717618244804,-500.0,0.00029898,4]
[328617058,1717618244813,-447.81,0.00029898,4]
[328617059,1717618244822,-686.43,0.00029898,4]
[328617060,1717618244831,-500.0,0.00029898,4]
[328617061,1717618244839,-500.0,0.00029898,4]
[328617062,1717618244849,-500.0,0.00029898,4]
[328617063,1717618244858,-500.0,0.00029898,4]
[328617064,1717618244867,-500.0,0.00029898,4]
[328617065,1717618244876,-500.0,0.00029898,4]
[328617066,1717618244885,-568.35,0.00029898,4]
[328617067,1717618244894,-500.0,0.00029898,4]
[328617068,1717618244903,-500.0,0.00029898,4]
[328617069,1717618244912,-500.0,0.00029898,4]
[328617070,1717618244921,-500.0,0.00029898,4]
[328617071,1717618244930,-500.0,0.00029898,4]
[328617072,1717618244940,-1442.26,0.00029898,4]
[328617073,1717618244948,-784.88,0.00029898,4]
[328617074,1717618244957,-547.79322126,0.00029898,4]
[328617075,1717618244966,-500.0,0.00029898,4]
[328617076,1717618244975,-500.0,0.00029898,4]
[328617078,1717618244984,-423.30888248,0.00029898,4]
[328617079,1717618244993,-2545.53,0.00029898,4]
[328617081,1717618245002,-500.0,0.00029898,4]
[328617083,1717618245012,-951.38,0.00029898,4]
[328617085,1717618245021,-151.0,0.00029898,7]
[328617087,1717618245030,-500.0,0.00029898,4]
[328617090,1717618245042,-500.0,0.00029898,4]
[328617091,1717618245051,-500.0,0.00029898,4]
[328617093,1717618245060,-573.17,0.00029898,4]
[328617095,1717618245069,-500.0,0.00029898,4]
[328617097,1717618245078,-500.0,0.00029898,4]
[328617100,1717618245089,-1052.52,0.00029898,4]
[328617102,1717618245098,-500.0,0.00029898,4]
[328617104,1717618245110,-500.0,0.00029898,4]
[328617106,1717618245120,-244.929612,0.00029898,7]
[328617108,1717618245131,-500.0,0.00029898,4]
[328617110,1717618245141,-151.0,0.00029898,7]
[328617112,1717618245151,-500.0,0.00029898,4]
[328617114,1717618245161,-244.929612,0.00029898,7]
[328617116,1717618245170,-425.62920804,0.00029898,4]
[328617118,1717618245179,-500.0,0.00029898,4]
[328617120,1717618245189,-500.0,0.00029898,4]
[328617122,1717618245199,-500.0,0.00029898,4]
[328617124,1717618245207,-500.0,0.00029898,4]
[328617126,1717618245217,-500.0,0.00029898,4]
[328617128,1717618245225,-500.0,0.00029898,4]
[328617129,1717618245234,-527.73,0.00029898,4]
[328617131,1717618245244,-500.0,0.00029898,4]
[328617133,1717618245254,-1293.76,0.00029898,4]
[328617135,1717618245265,-1948.67,0.00029898,4]
[328617137,1717618245274,-500.0,0.00029898,4]
[328617138,1717618245284,-563.44955881,0.00029898,4]
[328617139,1717618245293,-1089.54,0.00029898,4]
[328617140,1717618245302,-500.0,0.00029898,4]
[328617141,1717618245311,-500.0,0.00029898,4]
[328617142,1717618245320,-1946.74,0.00029898,4]
[328617143,1717618245330,-5598.89,0.00029898,4]
[328617144,1717618245338,-500.0,0.00029898,4]
[328617145,1717618245347,-151.0,0.00029898,7]
[328617146,1717618245357,-1171.59,0.00029898,4]
[328617147,1717618245366,-563.67428843,0.00029898,4]
[328617149,1717618245375,-500.0,0.00029898,4]
[328617151,1717618245385,-500.0,0.00029898,4]
[328617153,1717618245393,-500.0,0.00029898,4]
[328617155,1717618245403,-500.0,0.00029898,4]
[328617157,1717618245412,-500.0,0.00029898,4]
[328617159,1717618245423,-2380.68,0.00029898,4]
[328617173,1717618245535,-829.9,0.00029898,4]
[328617175,1717618245545,-500.0,0.00029898,4]
[328617177,1717618245554,-274.55483289,0.00029898,4]
[328617179,1717618245563,-500.0,0.00029898,4]
[328617181,1717618245573,-328.23067859,0.00029898,4]
[328617183,1717618245582,-12054.50551012,0.00029898,2]
[328617185,1717618245591,-284.76249177,0.00029898,4]
[328617186,1717618245601,-500.0,0.00029898,4]
[328617187,1717618245610,-353.56544957,0.00029898,4]
[328617188,1717618245619,-261.99871468,0.00029898,2]
[328617189,1717618245628,-601.78683,0.00029898,7]
[328617190,1717618245638,-2674.77791587,0.00029898,2]
[328617191,1717618245647,-500.0,0.00029898,4]
[328617192,1717618245657,-601.78683,0.00029898,7]
[328617193,1717618245666,-877.44,0.00029898,4]
[328617194,1717618245676,-500.0,0.00029898,4]
[328617195,1717618245685,-191.8400987,0.00029898,5]
[328617196,1717618245694,-150.0,0.00029899,10]
[328617197,1717618245704,-4000.0,0.00029899,2]
[328617198,1717618245713,-4000.0,0.00029899,2]
[328617199,1717618245723,-151.0,0.00029899,7]
[328617200,1717618245732,-177.635,0.00029899,7]
[328617201,1717618245741,-177.635,0.00029899,7]
[328617202,1717618245751,-151.0,0.00029899,7]
[328617203,1717618245761,-151.0,0.00029899,7]
[328617204,1717618245770,-373.85521534,0.00029899,4]
[328617205,1717618245779,-500.0,0.00029899,4]
[328617206,1717618245789,-500.0,0.00029899,4]
[328617207,1717618245798,-517.74135156,0.00029899,4]
[328617208,1717618245807,-500.0,0.00029899,4]
[328617209,1717618245816,-500.0,0.00029899,4]
[328617210,1717618245825,-151.0,0.00029899,7]
[328617211,1717618245835,-453.16,0.00029899,4]
[328617212,1717618245843,-500.0,0.00029899,4]
[328617213,1717618245852,-543.98598216,0.00029899,4]
[328617214,1717618245861,-500.0,0.00029899,4]
[328617215,1717618245870,-500.0,0.00029899,4]
[328617216,1717618245879,-500.0,0.00029899,4]
[328617217,1717618245888,-500.0,0.00029899,4]
[328617218,1717618245897,-500.0,0.00029899,4]
[328617219,1717618245907,-561.77749209,0.00029899,4]
[328617220,1717618245916,-423.27394879,0.00029899,4]
[328617221,1717618245925,-500.0,0.00029899,4]
[328617222,1717618245934,-531.25747329,0.00029899,4]
[328617223,1717618245943,-500.0,0.00029899,4]
[328617224,1717618245952,-500.0,0.00029899,4]
[328617225,1717618245963,-151.0,0.00029899,7]
[328617226,1717618245972,-178.83431826,0.00029899,4]
[328617227,1717618245981,-500.0,0.00029899,4]
[328617228,1717618245990,-500.0,0.00029899,4]
[328617229,1717618245999,-500.0,0.00029899,4]